[Event "Titled Tuesday Blitz November 16 2021"]
[White "Babazada, Khazar"]
[Black "Shyaamnikhil P"]
[WhiteFideId "13413554"]
[BlackFideId "5024218"]
[WhiteElo "2302"]
[BlackElo "2300"]
[Result "1-0"]
[Round "05"]
[TimeControl "180+1"]
[Date "2021.11.16"]
[WhiteClock "0:00:07"]
[BlackClock "0:00:05"]

1. e4 {[%clk 0:03:00]}  c5 {[%clk 0:02:56]} 2. Nf3 {[%clk 0:03:00]}  Nc6 {[%clk 0:02:56]} 3. d4 {[%clk 0:02:58]}  cxd4 {[%clk 0:02:57]} 4. Nxd4 {[%clk 0:02:57]}  e5 {[%clk 0:02:57]} 5. Nb5 {[%clk 0:02:56]}  a6 {[%clk 0:02:57]} 6. Nd6+ {[%clk 0:02:56]}  Bxd6 {[%clk 0:02:58]} 7. Qxd6 {[%clk 0:02:57]}  Qe7 {[%clk 0:02:58]} 8. Qd2 {[%clk 0:02:48]}  Nf6 {[%clk 0:02:46]} 9. f3 {[%clk 0:02:48]}  d6 {[%clk 0:02:43]} 10. c4 {[%clk 0:02:45]}  Be6 {[%clk 0:02:33]} 11. Nc3 {[%clk 0:02:45]}  Nd4 {[%clk 0:02:32]} 12. b3 {[%clk 0:02:41]}  O-O {[%clk 0:02:21]} 13. Bb2 {[%clk 0:02:41]}  b5 {[%clk 0:02:19]} 14. cxb5 {[%clk 0:02:37]}  axb5 {[%clk 0:02:18]} 15. Nxb5 {[%clk 0:02:38]}  Nxb5 {[%clk 0:02:06]} 16. Bxb5 {[%clk 0:02:39]}  d5 {[%clk 0:01:58]} 17. exd5 {[%clk 0:02:08]}  Nxd5 {[%clk 0:01:44]} 18. Bc4 {[%clk 0:02:02]}  Qc5 {[%clk 0:01:36]} 19. Rc1 {[%clk 0:01:53]}  Rxa2 {[%clk 0:01:34]} 20. b4 {[%clk 0:01:43]}  Qa7 {[%clk 0:00:42]} 21. Bxa2 {[%clk 0:01:39]}  Qxa2 {[%clk 0:00:43]} 22. O-O {[%clk 0:01:38]}  f6 {[%clk 0:00:38]} 23. Kh1 {[%clk 0:01:36]}  Rb8 {[%clk 0:00:32]} 24. Bc3 {[%clk 0:01:29]}  Qxd2 {[%clk 0:00:20]} 25. Bxd2 {[%clk 0:01:30]}  Nxb4 {[%clk 0:00:21]} 26. Bxb4 {[%clk 0:01:23]}  Rxb4 {[%clk 0:00:22]} 27. Rfd1 {[%clk 0:01:24]}  Rc4 {[%clk 0:00:20]} 28. Rxc4 {[%clk 0:01:20]}  Bxc4 {[%clk 0:00:20]} 29. Kg1 {[%clk 0:01:21]}  h5 {[%clk 0:00:20]} 30. Kf2 {[%clk 0:01:21]}  Kh7 {[%clk 0:00:20]} 31. h4 {[%clk 0:01:20]}  Kh6 {[%clk 0:00:19]} 32. Rd8 {[%clk 0:01:19]}  g5 {[%clk 0:00:19]} 33. Rd6 {[%clk 0:01:17]}  Kg6 {[%clk 0:00:19]} 34. hxg5 {[%clk 0:01:17]}  Kxg5 {[%clk 0:00:20]} 35. g3 {[%clk 0:01:15]}  Bf7 {[%clk 0:00:19]} 36. Ke3 {[%clk 0:01:08]}  Kf5 {[%clk 0:00:20]} 37. Ra6 {[%clk 0:01:02]}  Bc4 {[%clk 0:00:19]} 38. Rb6 {[%clk 0:01:02]}  Bd5 {[%clk 0:00:19]} 39. Rb4 {[%clk 0:00:57]}  Bf7 {[%clk 0:00:18]} 40. Kf2 {[%clk 0:00:50]}  Bd5 {[%clk 0:00:18]} 41. Ra4 {[%clk 0:00:46]}  Be6 {[%clk 0:00:17]} 42. Ra5 {[%clk 0:00:44]}  Kg5 {[%clk 0:00:16]} 43. Kg2 {[%clk 0:00:42]}  Bc4 {[%clk 0:00:15]} 44. Rc5 {[%clk 0:00:40]}  Bd3 {[%clk 0:00:15]} 45. Rc8 {[%clk 0:00:39]}  Kf5 {[%clk 0:00:15]} 46. Kh3 {[%clk 0:00:36]}  Be2 {[%clk 0:00:14]} 47. Rc3 {[%clk 0:00:34]}  e4 {[%clk 0:00:13]} 48. Rc5+ {[%clk 0:00:33]}  Ke6 {[%clk 0:00:12]} 49. fxe4 {[%clk 0:00:33]}  Bf3 {[%clk 0:00:12]} 50. Kh4 {[%clk 0:00:24]}  Bxe4 {[%clk 0:00:12]} 51. Kxh5 {[%clk 0:00:23]}  Bd3 {[%clk 0:00:11]} 52. Ra5 {[%clk 0:00:21]}  Kf7 {[%clk 0:00:11]} 53. g4 {[%clk 0:00:21]}  Bc2 {[%clk 0:00:10]} 54. Ra7+ {[%clk 0:00:20]}  Kf8 {[%clk 0:00:10]} 55. Rc7 {[%clk 0:00:17]}  Bb1 {[%clk 0:00:09]} 56. Kh6 {[%clk 0:00:12]}  Kg8 {[%clk 0:00:09]} 57. Re7 {[%clk 0:00:10]}  Kf8 {[%clk 0:00:08]} 58. Re3 {[%clk 0:00:10]}  Bc2 {[%clk 0:00:08]} 59. Re2 {[%clk 0:00:08]}  Bb1 {[%clk 0:00:09]} 60. Rf2 {[%clk 0:00:08]}  Ke7 {[%clk 0:00:05]} 61. Kg7 {[%clk 0:00:07]} 1-0


[Site "https://www.chess.com"]

[Event "Titled Tuesday Blitz November 16 2021"]
[White "Corrales Jimenez, Fidel"]
[Black "Czopor, Maciej"]
[WhiteFideId "3506690"]
[BlackFideId "21805431"]
[WhiteElo "2555"]
[BlackElo "1999"]
[Result "0-1"]
[Round "05"]
[TimeControl "180+1"]
[Date "2021.11.16"]
[WhiteClock "0:00:08"]
[BlackClock "0:00:09"]

1. e4 {[%clk 0:02:33]}  c5 {[%clk 0:02:58]} 2. Nf3 {[%clk 0:02:33]}  e6 {[%clk 0:02:59]} 3. d4 {[%clk 0:02:33]}  cxd4 {[%clk 0:03:00]} 4. Nxd4 {[%clk 0:02:33]}  Nc6 {[%clk 0:03:01]} 5. Nc3 {[%clk 0:02:33]}  Qc7 {[%clk 0:03:01]} 6. Be3 {[%clk 0:02:30]}  a6 {[%clk 0:03:01]} 7. Qf3 {[%clk 0:02:30]}  Nf6 {[%clk 0:03:02]} 8. O-O-O {[%clk 0:02:29]}  Ne5 {[%clk 0:03:02]} 9. Qg3 {[%clk 0:02:29]}  b5 {[%clk 0:03:01]} 10. Bxb5 {[%clk 0:01:42]}  Bb7 {[%clk 0:02:37]} 11. Bf4 {[%clk 0:01:29]}  Nh5 {[%clk 0:01:59]} 12. Bxe5 {[%clk 0:01:23]}  Nxg3 {[%clk 0:01:57]} 13. Bxc7 {[%clk 0:01:23]}  Nxh1 {[%clk 0:01:57]} 14. Rxh1 {[%clk 0:00:53]}  axb5 {[%clk 0:01:58]} 15. Ndxb5 {[%clk 0:00:54]}  Bc6 {[%clk 0:01:34]} 16. Nd6+ {[%clk 0:00:49]}  Ke7 {[%clk 0:01:35]} 17. Rd1 {[%clk 0:00:47]}  g5 {[%clk 0:01:30]} 18. Nc4 {[%clk 0:00:40]}  Bg7 {[%clk 0:01:21]} 19. Bd6+ {[%clk 0:00:39]}  Ke8 {[%clk 0:01:22]} 20. Ne5 {[%clk 0:00:39]}  h5 {[%clk 0:01:06]} 21. Nxc6 {[%clk 0:00:37]}  dxc6 {[%clk 0:01:06]} 22. e5 {[%clk 0:00:37]}  f6 {[%clk 0:01:01]} 23. exf6 {[%clk 0:00:34]}  Bxf6 {[%clk 0:01:02]} 24. Ne4 {[%clk 0:00:35]}  Kf7 {[%clk 0:00:59]} 25. a3 {[%clk 0:00:28]}  g4 {[%clk 0:00:57]} 26. c4 {[%clk 0:00:26]}  Kg6 {[%clk 0:00:38]} 27. Kc2 {[%clk 0:00:26]}  Kf5 {[%clk 0:00:38]} 28. Nxf6 {[%clk 0:00:24]}  Kxf6 {[%clk 0:00:39]} 29. Re1 {[%clk 0:00:24]}  Rhd8 {[%clk 0:00:30]} 30. c5 {[%clk 0:00:23]}  Ra4 {[%clk 0:00:17]} 31. Re3 {[%clk 0:00:20]}  Rda8 {[%clk 0:00:14]} 32. h3 {[%clk 0:00:19]}  R8a7 {[%clk 0:00:13]} 33. hxg4 {[%clk 0:00:19]}  hxg4 {[%clk 0:00:14]} 34. g3 {[%clk 0:00:19]}  Kf5 {[%clk 0:00:14]} 35. Re5+ {[%clk 0:00:18]}  Kf6 {[%clk 0:00:14]} 36. Re2 {[%clk 0:00:18]}  Kf5 {[%clk 0:00:14]} 37. Kb1 {[%clk 0:00:18]}  Re4 {[%clk 0:00:13]} 38. Rd2 {[%clk 0:00:19]}  Re1+ {[%clk 0:00:10]} 39. Ka2 {[%clk 0:00:19]}  e5 {[%clk 0:00:11]} 40. b4 {[%clk 0:00:19]}  Ke4 {[%clk 0:00:11]} 41. b5 {[%clk 0:00:17]}  cxb5 {[%clk 0:00:10]} 42. c6 {[%clk 0:00:18]}  Rc1 {[%clk 0:00:09]} 43. c7 {[%clk 0:00:19]}  Rcxc7 {[%clk 0:00:09]} 44. Bxc7 {[%clk 0:00:19]}  Rxc7 {[%clk 0:00:10]} 45. Kb3 {[%clk 0:00:20]}  Kf3 {[%clk 0:00:07]} 46. Kb4 {[%clk 0:00:20]}  Rc1 {[%clk 0:00:03]} 47. Kxb5 {[%clk 0:00:20]}  Rf1 {[%clk 0:00:04]} 48. a4 {[%clk 0:00:18]}  Rxf2 {[%clk 0:00:05]} 49. Rxf2+ {[%clk 0:00:19]}  Kxf2 {[%clk 0:00:05]} 50. a5 {[%clk 0:00:19]}  e4 {[%clk 0:00:06]} 51. a6 {[%clk 0:00:20]}  e3 {[%clk 0:00:07]} 52. a7 {[%clk 0:00:21]}  e2 {[%clk 0:00:08]} 53. a8=Q {[%clk 0:00:22]}  e1=Q {[%clk 0:00:07]} 54. Qa3 {[%clk 0:00:09]}  Qe2+ {[%clk 0:00:06]} 55. Kc6 {[%clk 0:00:07]}  Qf3+ {[%clk 0:00:06]} 56. Qxf3+ {[%clk 0:00:07]}  Kxf3 {[%clk 0:00:07]} 57. Kd5 {[%clk 0:00:07]}  Kxg3 {[%clk 0:00:08]} 58. Ke4 {[%clk 0:00:07]}  Kf2 {[%clk 0:00:08]} 59. Kf4 {[%clk 0:00:07]}  g3 {[%clk 0:00:09]} 60. Kg4 {[%clk 0:00:07]}  g2 {[%clk 0:00:10]} 61. Kh3 {[%clk 0:00:08]}  g1=Q {[%clk 0:00:09]} 0-1


[Site "https://www.chess.com"]

[Event "Titled Tuesday Blitz November 16 2021"]
[White "Durarbayli, Vasif"]
[Black "Baskin, Robert"]
[WhiteFideId "13402935"]
[BlackFideId "24662402"]
[WhiteElo "2522"]
[BlackElo "2488"]
[Result "1/2-1/2"]
[Round "05"]
[TimeControl "180+1"]
[Date "2021.11.16"]
[WhiteClock "0:00:07"]
[BlackClock "0:00:06"]

1. e4 {[%clk 0:03:00]}  e6 {[%clk 0:02:56]} 2. d4 {[%clk 0:03:00]}  d5 {[%clk 0:02:56]} 3. e5 {[%clk 0:03:01]}  c5 {[%clk 0:02:54]} 4. c3 {[%clk 0:03:00]}  Nc6 {[%clk 0:02:54]} 5. Nf3 {[%clk 0:02:59]}  Qb6 {[%clk 0:02:54]} 6. Be2 {[%clk 0:02:58]}  cxd4 {[%clk 0:02:39]} 7. cxd4 {[%clk 0:02:59]}  Nh6 {[%clk 0:02:39]} 8. Bxh6 {[%clk 0:02:58]}  Qxb2 {[%clk 0:02:35]} 9. Nc3 {[%clk 0:02:57]}  Qxc3+ {[%clk 0:02:17]} 10. Bd2 {[%clk 0:02:56]}  Qb2 {[%clk 0:02:17]} 11. O-O {[%clk 0:02:53]}  a6 {[%clk 0:02:06]} 12. Kh1 {[%clk 0:02:48]}  Be7 {[%clk 0:02:00]} 13. a4 {[%clk 0:02:42]}  Qb6 {[%clk 0:01:41]} 14. a5 {[%clk 0:02:41]}  Qa7 {[%clk 0:01:41]} 15. Bd3 {[%clk 0:02:34]}  Bd7 {[%clk 0:01:24]} 16. Qb1 {[%clk 0:02:14]}  g5 {[%clk 0:01:08]} 17. Bxg5 {[%clk 0:01:59]}  Bxg5 {[%clk 0:01:07]} 18. Nxg5 {[%clk 0:02:00]}  Qxd4 {[%clk 0:01:00]} 19. f4 {[%clk 0:01:37]}  h6 {[%clk 0:00:23]} 20. Nf3 {[%clk 0:01:35]}  Qxf4 {[%clk 0:00:22]} 21. Qxb7 {[%clk 0:01:35]}  Ra7 {[%clk 0:00:17]} 22. Qb3 {[%clk 0:01:22]}  Qb4 {[%clk 0:00:16]} 23. Qc2 {[%clk 0:01:19]}  Qe7 {[%clk 0:00:14]} 24. Qf2 {[%clk 0:01:10]}  Ra8 {[%clk 0:00:12]} 25. Qe3 {[%clk 0:01:00]}  Nb4 {[%clk 0:00:09]} 26. Bb1 {[%clk 0:00:58]}  Bb5 {[%clk 0:00:08]} 27. Rf2 {[%clk 0:00:56]}  Rc8 {[%clk 0:00:05]} 28. h3 {[%clk 0:00:54]}  Qc5 {[%clk 0:00:05]} 29. Qxc5 {[%clk 0:00:39]}  Rxc5 {[%clk 0:00:05]} 30. Rb2 {[%clk 0:00:40]}  Nc6 {[%clk 0:00:04]} 31. Bc2 {[%clk 0:00:36]}  Ke7 {[%clk 0:00:04]} 32. Ba4 {[%clk 0:00:32]}  Rc8 {[%clk 0:00:04]} 33. Rf2 {[%clk 0:00:24]}  Bxa4 {[%clk 0:00:03]} 34. Rxa4 {[%clk 0:00:25]}  Rxa5 {[%clk 0:00:03]} 35. Rh4 {[%clk 0:00:25]}  Ra1+ {[%clk 0:00:03]} 36. Kh2 {[%clk 0:00:25]}  a5 {[%clk 0:00:04]} 37. Rxh6 {[%clk 0:00:26]}  a4 {[%clk 0:00:03]} 38. Rc2 {[%clk 0:00:19]}  Na7 {[%clk 0:00:02]} 39. Rb2 {[%clk 0:00:18]}  Rc7 {[%clk 0:00:02]} 40. Rh8 {[%clk 0:00:15]}  a3 {[%clk 0:00:02]} 41. Rbb8 {[%clk 0:00:14]}  Nc6 {[%clk 0:00:02]} 42. Ra8 {[%clk 0:00:14]}  Ra7 {[%clk 0:00:02]} 43. Rhe8+ {[%clk 0:00:08]}  Kd7 {[%clk 0:00:02]} 44. Rxa7+ {[%clk 0:00:09]}  Nxa7 {[%clk 0:00:02]} 45. Ra8 {[%clk 0:00:10]}  Nc6 {[%clk 0:00:02]} 46. Kg3 {[%clk 0:00:10]}  a2 {[%clk 0:00:02]} 47. h4 {[%clk 0:00:10]}  Nb4 {[%clk 0:00:02]} 48. h5 {[%clk 0:00:10]}  Rh1 {[%clk 0:00:01]} 49. Ra7+ {[%clk 0:00:10]}  Kc6 {[%clk 0:00:01]} 50. Nh4 {[%clk 0:00:07]}  a1=Q {[%clk 0:00:01]} 51. Rxa1 {[%clk 0:00:07]}  Rxa1 {[%clk 0:00:02]} 52. Kg4 {[%clk 0:00:08]}  Ra8 {[%clk 0:00:02]} 53. Kg5 {[%clk 0:00:09]}  Rg8+ {[%clk 0:00:02]} 54. Kf6 {[%clk 0:00:08]}  Rg4 {[%clk 0:00:02]} 55. Nf3 {[%clk 0:00:08]}  Nd3 {[%clk 0:00:01]} 56. h6 {[%clk 0:00:08]}  Nf4 {[%clk 0:00:02]} 57. h7 {[%clk 0:00:08]}  Rg6+ {[%clk 0:00:02]} 58. Kxf7 {[%clk 0:00:08]}  Rh6 {[%clk 0:00:03]} 59. Kg7 {[%clk 0:00:08]}  Rxh7+ {[%clk 0:00:03]} 60. Kxh7 {[%clk 0:00:08]}  Nxg2 {[%clk 0:00:04]} 61. Kg6 {[%clk 0:00:07]}  Kc5 {[%clk 0:00:04]} 62. Kf6 {[%clk 0:00:03]}  Nf4 {[%clk 0:00:05]} 63. Kg5 {[%clk 0:00:04]}  Nd3 {[%clk 0:00:04]} 64. Kf6 {[%clk 0:00:04]}  Nf4 {[%clk 0:00:05]} 65. Kg5 {[%clk 0:00:04]}  Nd3 {[%clk 0:00:05]} 66. Kf6 {[%clk 0:00:05]}  Nxe5 {[%clk 0:00:05]} 67. Kxe5 {[%clk 0:00:05]}  Kc4 {[%clk 0:00:06]} 68. Nd4 {[%clk 0:00:05]}  Kd3 {[%clk 0:00:06]} 69. Nxe6 {[%clk 0:00:06]}  d4 {[%clk 0:00:06]} 70. Nxd4 {[%clk 0:00:07]} 1/2-1/2


[Site "https://www.chess.com"]

[Event "Titled Tuesday Blitz November 16 2021"]
[White "Ghazarian, Kirk"]
[Black "Holt, Conrad"]
[WhiteFideId "30908604"]
[BlackFideId "2034387"]
[WhiteElo "2003"]
[BlackElo "2586"]
[Result "0-1"]
[Round "05"]
[TimeControl "180+1"]
[Date "2021.11.16"]
[WhiteClock "0:01:21"]
[BlackClock "0:01:36"]

1. d4 {[%clk 0:03:00]}  d5 {[%clk 0:03:00]} 2. Bf4 {[%clk 0:02:59]}  c5 {[%clk 0:03:00]} 3. c3 {[%clk 0:02:58]}  Nc6 {[%clk 0:02:58]} 4. e3 {[%clk 0:02:58]}  Qb6 {[%clk 0:02:55]} 5. Qb3 {[%clk 0:02:55]}  c4 {[%clk 0:02:44]} 6. Qc2 {[%clk 0:02:44]}  Bf5 {[%clk 0:02:43]} 7. Qc1 {[%clk 0:02:40]}  e6 {[%clk 0:02:42]} 8. Nd2 {[%clk 0:02:37]}  Nf6 {[%clk 0:02:28]} 9. h3 {[%clk 0:02:37]}  Rc8 {[%clk 0:02:24]} 10. Ngf3 {[%clk 0:02:37]}  Be7 {[%clk 0:02:23]} 11. Be2 {[%clk 0:02:36]}  O-O {[%clk 0:02:22]} 12. O-O {[%clk 0:02:33]}  Qd8 {[%clk 0:02:20]} 13. Ne5 {[%clk 0:02:30]}  Nxe5 {[%clk 0:02:18]} 14. dxe5 {[%clk 0:02:25]}  Nd7 {[%clk 0:02:14]} 15. Nf3 {[%clk 0:02:24]}  Nc5 {[%clk 0:02:07]} 16. Rd1 {[%clk 0:02:09]}  Bd3 {[%clk 0:01:53]} 17. Qd2 {[%clk 0:01:57]}  Qb6 {[%clk 0:01:43]} 18. b4 {[%clk 0:01:46]}  Ne4 {[%clk 0:01:41]} 19. Qb2 {[%clk 0:01:24]}  Bxe2 {[%clk 0:01:40]} 20. Qxe2 {[%clk 0:01:25]}  Nxc3 {[%clk 0:01:40]} 21. Qd2 {[%clk 0:01:24]}  Nxd1 {[%clk 0:01:40]} 22. Rxd1 {[%clk 0:01:24]}  c3 {[%clk 0:01:40]} 23. Qc2 {[%clk 0:01:25]}  Qxb4 {[%clk 0:01:38]} 24. Rd4 {[%clk 0:01:25]}  Qb2 {[%clk 0:01:37]} 25. Qd3 {[%clk 0:01:21]}  c2 {[%clk 0:01:36]} 0-1


[Site "https://www.chess.com"]

[Event "Titled Tuesday Blitz November 16 2021"]
[White "Golubev, Mikhail"]
[Black "Goltsev, Dmitry"]
[WhiteFideId "14100983"]
[BlackFideId "24176710"]
[WhiteElo "2374"]
[BlackElo "2259"]
[Result "0-1"]
[Round "05"]
[TimeControl "180+1"]
[Date "2021.11.16"]
[WhiteClock "0:00:13"]
[BlackClock "0:00:28"]

1. e4 {[%clk 0:03:00]}  e6 {[%clk 0:02:45]} 2. d4 {[%clk 0:02:59]}  d5 {[%clk 0:02:46]} 3. Nc3 {[%clk 0:03:00]}  Nf6 {[%clk 0:02:33]} 4. Bg5 {[%clk 0:02:58]}  dxe4 {[%clk 0:02:33]} 5. Nxe4 {[%clk 0:02:55]}  Be7 {[%clk 0:02:33]} 6. Nxf6+ {[%clk 0:02:54]}  gxf6 {[%clk 0:02:34]} 7. Be3 {[%clk 0:02:51]}  b6 {[%clk 0:02:34]} 8. Qf3 {[%clk 0:02:48]}  c6 {[%clk 0:02:34]} 9. Bc4 {[%clk 0:02:37]}  Bb7 {[%clk 0:02:32]} 10. Ne2 {[%clk 0:02:36]}  Nd7 {[%clk 0:02:30]} 11. Bxe6 {[%clk 0:02:30]}  Nf8 {[%clk 0:02:20]} 12. Bh3 {[%clk 0:02:14]}  Ng6 {[%clk 0:02:19]} 13. O-O-O {[%clk 0:02:12]}  Qc7 {[%clk 0:02:17]} 14. Ng3 {[%clk 0:02:05]}  c5 {[%clk 0:02:17]} 15. d5 {[%clk 0:02:03]}  Ne5 {[%clk 0:02:16]} 16. Qh5 {[%clk 0:01:57]}  Nc4 {[%clk 0:02:11]} 17. Rhe1 {[%clk 0:01:42]}  Qe5 {[%clk 0:01:59]} 18. Qxe5 {[%clk 0:01:41]}  fxe5 {[%clk 0:02:00]} 19. Nf5 {[%clk 0:01:24]}  Bf6 {[%clk 0:01:55]} 20. Bh6 {[%clk 0:01:12]}  Bc8 {[%clk 0:01:41]} 21. b3 {[%clk 0:00:48]}  Bxf5 {[%clk 0:01:39]} 22. Bxf5 {[%clk 0:00:49]}  Nd6 {[%clk 0:01:32]} 23. Bd3 {[%clk 0:00:46]}  O-O-O {[%clk 0:01:27]} 24. f4 {[%clk 0:00:42]}  Rde8 {[%clk 0:01:26]} 25. fxe5 {[%clk 0:00:37]}  Rxe5 {[%clk 0:01:26]} 26. Rxe5 {[%clk 0:00:34]}  Bxe5 {[%clk 0:01:27]} 27. g3 {[%clk 0:00:33]}  b5 {[%clk 0:00:44]} 28. Re1 {[%clk 0:00:27]}  Re8 {[%clk 0:00:35]} 29. Bf4 {[%clk 0:00:20]}  Bxf4+ {[%clk 0:00:34]} 30. Kd1 {[%clk 0:00:17]}  Rxe1+ {[%clk 0:00:32]} 31. Kxe1 {[%clk 0:00:18]}  Be5 {[%clk 0:00:32]} 32. Bxh7 {[%clk 0:00:18]}  Kd7 {[%clk 0:00:32]} 33. Ke2 {[%clk 0:00:18]}  Ke7 {[%clk 0:00:33]} 34. Kf3 {[%clk 0:00:17]}  Kf6 {[%clk 0:00:33]} 35. Bd3 {[%clk 0:00:17]}  b4 {[%clk 0:00:31]} 36. h4 {[%clk 0:00:16]}  Nf5 {[%clk 0:00:31]} 37. Bxf5 {[%clk 0:00:14]}  Kxf5 {[%clk 0:00:32]} 38. g4+ {[%clk 0:00:15]}  Kf6 {[%clk 0:00:32]} 39. Ke4 {[%clk 0:00:15]}  Bd6 {[%clk 0:00:32]} 40. Kd3 {[%clk 0:00:14]}  Ke5 {[%clk 0:00:31]} 41. Kc4 {[%clk 0:00:15]}  a6 {[%clk 0:00:30]} 42. h5 {[%clk 0:00:15]}  Kf6 {[%clk 0:00:30]} 43. Kd3 {[%clk 0:00:13]}  Kg5 {[%clk 0:00:30]} 44. Ke4 {[%clk 0:00:14]}  f5+ {[%clk 0:00:24]} 45. gxf5 {[%clk 0:00:13]}  Kxh5 {[%clk 0:00:25]} 46. f6 {[%clk 0:00:12]}  Kg6 {[%clk 0:00:26]} 47. f7 {[%clk 0:00:13]}  Kxf7 {[%clk 0:00:26]} 48. Kf5 {[%clk 0:00:14]}  Ke7 {[%clk 0:00:26]} 49. Kg6 {[%clk 0:00:14]}  Bh2 {[%clk 0:00:25]} 50. Kf5 {[%clk 0:00:15]}  Kd6 {[%clk 0:00:26]} 51. Ke4 {[%clk 0:00:15]}  Be5 {[%clk 0:00:26]} 52. Ke3 {[%clk 0:00:14]}  Kxd5 {[%clk 0:00:27]} 53. Kd3 {[%clk 0:00:15]}  Bd4 {[%clk 0:00:28]} 54. Ke2 {[%clk 0:00:14]}  a5 {[%clk 0:00:28]} 55. Kd3 {[%clk 0:00:14]}  c4+ {[%clk 0:00:27]} 56. bxc4+ {[%clk 0:00:13]}  Kc5 {[%clk 0:00:28]} 0-1


[Site "https://www.chess.com"]

[Event "Titled Tuesday Blitz November 16 2021"]
[White "Kryakvin, Dmitry"]
[Black "Sasikiran, Krishnan"]
[WhiteFideId "4153278"]
[BlackFideId "5004985"]
[WhiteElo "2372"]
[BlackElo "2552"]
[Result "1/2-1/2"]
[Round "05"]
[TimeControl "180+1"]
[Date "2021.11.16"]
[WhiteClock "0:00:04"]
[BlackClock "0:00:15"]

1. Nf3 {[%clk 0:03:00]}  d5 {[%clk 0:02:59]} 2. e3 {[%clk 0:02:59]}  Nf6 {[%clk 0:02:59]} 3. c4 {[%clk 0:02:58]}  c6 {[%clk 0:02:59]} 4. Nc3 {[%clk 0:02:57]}  g6 {[%clk 0:02:59]} 5. d4 {[%clk 0:02:56]}  Bg7 {[%clk 0:02:59]} 6. Be2 {[%clk 0:02:53]}  O-O {[%clk 0:02:59]} 7. O-O {[%clk 0:02:52]}  e6 {[%clk 0:02:59]} 8. b4 {[%clk 0:02:50]}  Nbd7 {[%clk 0:02:55]} 9. a4 {[%clk 0:02:49]}  a5 {[%clk 0:02:49]} 10. b5 {[%clk 0:02:47]}  dxc4 {[%clk 0:02:45]} 11. Ba3 {[%clk 0:02:41]}  Re8 {[%clk 0:02:43]} 12. Bxc4 {[%clk 0:02:32]}  Qc7 {[%clk 0:02:39]} 13. Rc1 {[%clk 0:02:26]}  e5 {[%clk 0:02:29]} 14. Ng5 {[%clk 0:02:11]}  Rf8 {[%clk 0:02:26]} 15. Bxf8 {[%clk 0:02:10]}  Nxf8 {[%clk 0:02:26]} 16. Nxf7 {[%clk 0:01:50]}  exd4 {[%clk 0:02:23]} 17. exd4 {[%clk 0:01:42]}  Be6 {[%clk 0:02:20]} 18. Bxe6 {[%clk 0:01:37]}  Nxe6 {[%clk 0:02:20]} 19. Ne5 {[%clk 0:01:37]}  Rd8 {[%clk 0:02:18]} 20. Qb3 {[%clk 0:01:36]}  Qd6 {[%clk 0:02:12]} 21. bxc6 {[%clk 0:01:33]}  bxc6 {[%clk 0:02:12]} 22. Ne2 {[%clk 0:01:27]}  Qd5 {[%clk 0:01:55]} 23. Qxd5 {[%clk 0:01:20]}  Nxd5 {[%clk 0:01:52]} 24. Nxc6 {[%clk 0:01:14]}  Ra8 {[%clk 0:01:52]} 25. Rfe1 {[%clk 0:01:07]}  Bh6 {[%clk 0:01:48]} 26. Rb1 {[%clk 0:01:03]}  Bd2 {[%clk 0:01:46]} 27. Red1 {[%clk 0:01:00]}  Bb4 {[%clk 0:01:46]} 28. Rdc1 {[%clk 0:00:51]}  Re8 {[%clk 0:01:36]} 29. Kf1 {[%clk 0:00:50]}  h5 {[%clk 0:01:30]} 30. Rc4 {[%clk 0:00:49]}  Kg7 {[%clk 0:01:23]} 31. g3 {[%clk 0:00:47]}  g5 {[%clk 0:01:22]} 32. Nxb4 {[%clk 0:00:43]}  axb4 {[%clk 0:01:22]} 33. a5 {[%clk 0:00:42]}  Ra8 {[%clk 0:01:20]} 34. Rc6 {[%clk 0:00:42]}  Nec7 {[%clk 0:01:14]} 35. Rbc1 {[%clk 0:00:37]}  Ra7 {[%clk 0:01:06]} 36. Kg2 {[%clk 0:00:25]}  Kf7 {[%clk 0:01:02]} 37. h4 {[%clk 0:00:22]}  gxh4 {[%clk 0:01:02]} 38. Nf4 {[%clk 0:00:21]}  hxg3 {[%clk 0:01:01]} 39. Nxd5 {[%clk 0:00:16]}  Nxd5 {[%clk 0:01:01]} 40. R6c5 {[%clk 0:00:14]}  Ke6 {[%clk 0:00:58]} 41. fxg3 {[%clk 0:00:13]}  Nc3 {[%clk 0:00:52]} 42. R1xc3 {[%clk 0:00:12]}  bxc3 {[%clk 0:00:52]} 43. Kh3 {[%clk 0:00:12]}  c2 {[%clk 0:00:49]} 44. Kh4 {[%clk 0:00:11]}  Rxa5 {[%clk 0:00:48]} 45. Rxc2 {[%clk 0:00:12]}  Rd5 {[%clk 0:00:44]} 46. Re2+ {[%clk 0:00:10]}  Kf6 {[%clk 0:00:44]} 47. Re4 {[%clk 0:00:10]}  Kg6 {[%clk 0:00:43]} 48. Re6+ {[%clk 0:00:09]}  Kg7 {[%clk 0:00:41]} 49. Re4 {[%clk 0:00:08]}  Kg6 {[%clk 0:00:41]} 50. Rf4 {[%clk 0:00:08]}  Rd8 {[%clk 0:00:39]} 51. Kh3 {[%clk 0:00:06]}  Rd5 {[%clk 0:00:36]} 52. Kg2 {[%clk 0:00:06]}  Rd8 {[%clk 0:00:35]} 53. Kf3 {[%clk 0:00:06]}  Rc8 {[%clk 0:00:34]} 54. Re4 {[%clk 0:00:03]}  Rc1 {[%clk 0:00:32]} 55. Kf4 {[%clk 0:00:02]}  Rc3 {[%clk 0:00:31]} 56. d5 {[%clk 0:00:01]}  Rd3 {[%clk 0:00:30]} 57. Ke5 {[%clk 0:00:02]}  Rxg3 {[%clk 0:00:28]} 58. d6 {[%clk 0:00:02]}  Rd3 {[%clk 0:00:27]} 59. Ke6 {[%clk 0:00:02]}  Kg5 {[%clk 0:00:26]} 60. Re5+ {[%clk 0:00:03]}  Kg4 {[%clk 0:00:26]} 61. Rd5 {[%clk 0:00:03]}  Re3+ {[%clk 0:00:23]} 62. Kf7 {[%clk 0:00:03]}  Rf3+ {[%clk 0:00:20]} 63. Kg7 {[%clk 0:00:03]}  Ra3 {[%clk 0:00:19]} 64. d7 {[%clk 0:00:03]}  Ra7 {[%clk 0:00:19]} 65. Kf6 {[%clk 0:00:03]}  Ra8 {[%clk 0:00:14]} 66. d8=Q {[%clk 0:00:03]}  Rxd8 {[%clk 0:00:14]} 67. Rxd8 {[%clk 0:00:04]}  h4 {[%clk 0:00:15]} 68. Rg8+ {[%clk 0:00:04]}  Kf3 {[%clk 0:00:15]} 69. Kf5 {[%clk 0:00:03]}  h3 {[%clk 0:00:15]} 70. Ra8 {[%clk 0:00:04]}  h2 {[%clk 0:00:15]} 71. Ra3+ {[%clk 0:00:04]}  Kg2 {[%clk 0:00:14]} 72. Ra2+ {[%clk 0:00:04]}  Kh3 {[%clk 0:00:15]} 73. Rxh2+ {[%clk 0:00:04]}  Kxh2 {[%clk 0:00:15]} 1/2-1/2


[Site "https://www.chess.com"]